fUSD/lending_fUSD_20240404
["ID","MTS","AMOUNT","RATE_DAILY","PERIOD"]
[321443242,1712193043237,-150.0,0.00044124,2]
[321443243,1712193043246,-1005.96,0.000442,2]
[321443244,1712193043255,-304.08,0.0004429,2]
[321443245,1712193043264,-500.0,0.00044428,4]
[321443246,1712193043274,-500.0,0.00044428,4]
[321443247,1712193043283,-500.0,0.00044428,4]
[321443248,1712193043292,-500.0,0.00044428,4]
[321443249,1712193043301,-500.0,0.00044428,4]
[321443250,1712193043311,-500.0,0.00044428,4]
[321443251,1712193043321,-500.0,0.00044428,4]
[321443252,1712193043331,-500.0,0.00044428,4]
[321443253,1712193043340,-500.0,0.00044428,4]
[321443255,1712193043349,-500.0,0.00044428,4]
[321443256,1712193043358,-500.0,0.00044428,4]
[321443257,1712193043368,-500.0,0.00044428,4]
[321443258,1712193043377,-500.0,0.00044428,4]
[321443259,1712193043386,-500.0,0.00044428,4]
[321443260,1712193043396,-500.0,0.00044428,4]
[321443261,1712193043405,-500.0,0.00044428,4]
[321443262,1712193043415,-500.0,0.00044428,4]
[321443263,1712193043425,-500.0,0.00044428,4]
[321443264,1712193043435,-500.0,0.00044428,4]
[321443265,1712193043444,-312.0,0.00044428,4]
[321443266,1712193043454,-238.60921491,0.00044611,65]
[321443267,1712193043464,-1005.96,0.000448,2]
[321443268,1712193043473,-150.0,0.0004487,55]
[321443269,1712193043483,-400.0,0.0004488,30]
[321443270,1712193043492,-2628.697384,0.0004488,30]
[321443271,1712193043501,-208.268147,0.0004488,30]
[321443272,1712193043510,-173.130722,0.0004488,30]
[321443273,1712193043520,-200.781815,0.0004488,30]
[321443274,1712193043529,-191.585948,0.0004488,30]
[321443275,1712193043538,-304.08,0.0004489,2]
[321443276,1712193043547,-5169.63145729,0.0004498,2]
[321443277,1712193043557,-5000.0,0.00044986,4]
[321443278,1712193043566,-150.0,0.00044989,2]
[321443279,1712193043575,-629.30241253,0.00045,4]
[321443280,1712193043588,-1215.52391343,0.00045,5]
[321443281,1712193043597,-328.38424403,0.00045,4]
[321443282,1712193043606,-150.999999,0.00045,120]
[321443283,1712193043615,-130693.08527069,0.00045,2]
[321443284,1712193043624,-262.52416993,0.00045,7]
[321443285,1712193043634,-155.0,0.00045,14]
[321443286,1712193043643,-3249.53832177,0.00045,30]
[321443287,1712193043652,-723.44747167,0.00045,30]
[321443288,1712193043661,-170971.73125008,0.0004509,2]
[321443289,1712193043670,-1153.99,0.000451,7]
[321443290,1712193043679,-195.0,0.00045205,2]
[321443291,1712193043688,-1005.96,0.0004525,2]
[321443292,1712193043699,-1102.04,0.000454,7]
[321443293,1712193043710,-400.0,0.00045441,30]
[321443294,1712193043719,-2628.697384,0.00045441,30]
[321443295,1712193043729,-208.268147,0.00045441,30]
[321443296,1712193043740,-937.78,0.00045541,2]
[321443297,1712193043750,-304.08,0.0004572,2]
[321443298,1712193043759,-1005.96,0.0004585,2]
[321443299,1712193043768,-150.0,0.00045854,2]
[321443300,1712193043778,-1612.05385673,0.00046,4]
[321443301,1712193043787,-309.92186674,0.00046,3]
[321443302,1712193043797,-400.0,0.00046002,30]
[321443303,1712193043809,-2628.697384,0.00046002,30]
[321443304,1712193043818,-208.268147,0.00046002,30]
[321443305,1712193043830,-1117.8,0.00046247,15]
[321443306,1712193043839,-1177.0,0.000463,7]
[321443307,1712193043848,-1005.96,0.000463,2]
[321443308,1712193043857,-304.08,0.0004632,2]
[321443309,1712193043867,-3519.0,0.00046478,10]
[321443310,1712193043876,-400.0,0.00046544,30]
[321443311,1712193043885,-400.0,0.00046563,30]
[321443312,1712193043895,-2628.697384,0.00046563,30]
[321443313,1712193043904,-208.268147,0.00046563,30]
[321443314,1712193043914,-150.0,0.0004672,2]
[321443315,1712193043924,-152.0,0.00046896,3]
[321443316,1712193043934,-1005.96,0.000469,2]
[321443317,1712193043943,-400.0,0.00047124,30]
[321443318,1712193043953,-2628.697384,0.00047124,30]
[321443319,1712193043963,-208.268147,0.00047124,30]
[321443320,1712193043972,-400.0,0.00047126,30]
[321443321,1712193043982,-304.08,0.0004715,2]
[321443322,1712193043992,-151.0,0.00047283,7]
[321443323,1712193044001,-677.88,0.00047322,120]
[321443324,1712193044011,-1005.96,0.0004735,2]
[321443325,1712193044021,-152.0,0.00047505,4]
[321443326,1712193044031,-150.0,0.00047585,2]
[321443327,1712193044041,-500.0,0.00047632,30]
[321443328,1712193044051,-35468.5489006,0.00047633,7]
[321443329,1712193044062,-7916.67629144,0.00047635,42]
[321443330,1712193044071,-150.0,0.0004765,61]
[321443331,1712193044082,-400.0,0.00047708,30]
[321443332,1712193044091,-304.08,0.0004775,2]
[321443333,1712193044100,-937.78,0.00047805,2]
[321443334,1712193044109,-238.60921491,0.00047896,76]
[321443335,1712193044120,-441.83,0.00047945,2]
[321443336,1712193044129,-1005.96,0.0004795,2]
[321443337,1712193044138,-597.47570345,0.00048,120]
[321443338,1712193044148,-151.0,0.00048,120]
[321443339,1712193044157,-507.01542111,0.00048,120]
[321443340,1712193044167,-1153.99,0.00048,7]
[321443341,1712193044176,-1102.04,0.00048,7]
[321443342,1712193044185,-388.42808272,0.00048068,30]
[321443343,1712193044194,-300.0,0.00048093,2]
[321443344,1712193044203,-154.04196447,0.00048103,30]
[321443345,1712193044213,-197.38677701,0.00048109,30]
[321443346,1712193044222,-152.0,0.00048114,5]
[321443347,1712193044232,-197.38677701,0.00048157,30]
[321443348,1712193044242,-291.67523411,0.00048177,30]
[321443349,1712193044251,-500.0,0.0004818,30]
[321443350,1712193044261,-388.42808272,0.00048191,30]
[321443351,1712193044271,-155.78714103,0.00048247,30]
[321443352,1712193044281,-153.63115965,0.00048253,30]
[321443353,1712193044290,-153.63115965,0.00048273,30]
[321443354,1712193044300,-153.63115965,0.00048274,30]
[321443355,1712193044310,-400.0,0.0004829,30]
[321443356,1712193044319,-388.42808272,0.00048326,30]
[321443357,1712193044329,-155.2251499,0.00048345,30]
[321443358,1712193044338,-1038.38,0.00048396,2]
[321443359,1712193044347,-150.0,0.00048396,2]
[321443360,1712193044355,-150.0,0.00048396,2]
[321443361,1712193044365,-238.9,0.00048396,2]
[321443362,1712193044374,-150.0,0.00048396,2]
[321443363,1712193044383,-1237.62,0.00048396,2]
[321443364,1712193044392,-161.88,0.00048396,2]
[321443365,1712193044402,-150.0,0.00048396,2]
[321443366,1712193044413,-150.0,0.00048396,2]
[321443367,1712193044422,-348.46,0.00048396,2]
[321443368,1712193044432,-161.88,0.00048396,2]
[321443369,1712193044440,-150.0,0.00048396,2]
[321443370,1712193044450,-150.0,0.00048396,2]
[321443371,1712193044460,-150.0,0.00048396,2]
[321443372,1712193044469,-161.88,0.00048396,2]
[321443373,1712193044478,-150.0,0.00048396,2]
[321443374,1712193044487,-150.0,0.00048396,2]
[321443375,1712193044496,-161.88,0.00048396,2]
[321443376,1712193044506,-150.0,0.00048396,2]
[321443377,1712193044515,-150.0,0.00048396,2]
[321443378,1712193044525,-161.88,0.00048396,2]
[321443379,1712193044534,-160.54,0.00048396,2]
[321443380,1712193044544,-161.88,0.00048396,2]
[321443381,1712193044553,-161.88,0.00048396,2]
[321443382,1712193044562,-161.88,0.00048396,2]
[321443383,1712193044571,-161.88,0.00048396,2]
[321443384,1712193044582,-161.88,0.00048396,2]
[321443385,1712193044591,-161.88,0.00048396,2]
[321443386,1712193044600,-161.88,0.00048396,2]
[321443387,1712193044609,-161.88,0.00048396,2]
[321443388,1712193044619,-161.88,0.00048396,2]
[321443389,1712193044628,-161.88,0.00048396,2]
[321443390,1712193044637,-161.88,0.00048396,2]
[321443391,1712193044647,-161.88,0.00048396,2]
[321443392,1712193044656,-161.88,0.00048396,2]
[321443393,1712193044665,-519.19,0.00048396,2]
[321443394,1712193044675,-833.82,0.00048396,2]
[321443395,1712193044684,-302.34,0.00048396,2]
[321443396,1712193044694,-904.55,0.00048396,2]
[321443397,1712193044707,-151.81,0.00048396,2]
[321443398,1712193044716,-150.0,0.00048396,2]
[321443399,1712193044725,-678.2,0.00048396,2]
[321443400,1712193044735,-904.55,0.00048396,2]
[321443401,1712193044745,-150.0,0.00048396,2]
[321443402,1712193044755,-904.55,0.00048396,2]
[321443403,1712193044764,-150.0,0.00048396,2]
[321443404,1712193044774,-904.55,0.00048396,2]
[321443405,1712193044785,-904.55,0.00048396,2]
[321443406,1712193044794,-365.24,0.00048396,2]
[321443407,1712193044803,-1005.96,0.000484,2]
[321443408,1712193044812,-203.19613583,0.00048408,30]
[321443409,1712193044822,-203.19613583,0.00048433,30]
[321443410,1712193044832,-197.38677701,0.0004844,30]
[321443411,1712193044841,-150.0,0.0004845,2]
[321443412,1712193044850,-153.63115965,0.00048454,30]
[321443413,1712193044859,-388.42808272,0.00048466,30]
[321443414,1712193044867,-4695.85186074,0.00048475,2]
[321443415,1712193044877,-388.42808272,0.00048517,30]
[321443416,1712193044885,-153.63115965,0.00048524,30]
[321443417,1712193044895,-304.08,0.0004858,2]
[321443418,1712193044904,-211.70038815,0.00048581,30]
[321443419,1712193044914,-602.12417404,0.00048585,30]
[321443420,1712193044923,-211.70038815,0.00048596,30]
[321443421,1712193044932,-1177.0,0.000486,7]
[321443422,1712193044941,-203.19613583,0.00048604,30]
[321443423,1712193044951,-197.38677701,0.00048621,30]
[321443424,1712193044960,-153.54975412,0.00048626,30]
[321443425,1712193044969,-155.2251499,0.00048644,30]
[321443426,1712193044978,-159.96854777,0.00048657,30]
[321443427,1712193044987,-291.67523411,0.00048658,30]
[321443428,1712193044997,-388.42808272,0.00048661,30]
[321443429,1712193045007,-388.42808272,0.00048691,30]
[321443430,1712193045016,-1276.854916,0.000487,30]
[321443431,1712193045027,-1246.0,0.000487,117]
[321443432,1712193045037,-16768.09825731,0.000487,2]
[321443433,1712193045048,-19887.09444479,0.000487,2]
[321443434,1712193045058,-167.52558322,0.00048712,30]
[321443435,1712193045067,-151.0,0.00048712,120]
[321443436,1712193045078,-152.0,0.00048723,6]
[321443437,1712193045088,-500.0,0.00048728,30]
[321443438,1712193045098,-217.07339303,0.0004873,30]
[321443439,1712193045107,-158.95167049,0.00048752,30]
[321443440,1712193045117,-291.67523411,0.00048753,30]
[321443441,1712193045127,-509.54232732,0.00048762,30]
[321443442,1712193045136,-155.78714103,0.00048763,30]
[321443443,1712193045147,-291.67523411,0.00048766,30]
[321443444,1712193045156,-509.54232732,0.00048793,30]
[321443445,1712193045165,-154.28158035,0.00048806,30]
[321443446,1712193045175,-291.67523411,0.00048806,30]
[321443447,1712193045184,-154.04196447,0.00048808,30]
[321443448,1712193045193,-602.12417404,0.00048818,30]
[321443449,1712193045202,-509.54232732,0.0004886,30]
[321443450,1712193045212,-400.0,0.00048871,30]
[321443451,1712193045221,-156.25,0.00048894,2]
[321443452,1712193045231,-158.95167049,0.00048896,30]
[321443453,1712193045240,-464105.66578601,0.000489,2]
[321443454,1712193045250,-2098.01094403,0.000489,2]
[321443455,1712193045259,-602.12417404,0.00048905,30]
[321443456,1712193045269,-166.66666668,0.00048963,30]
[321443457,1712193045278,-1117.8,0.00048986,15]
[321443458,1712193045288,-157.33985921,0.00048999,30]
[321443459,1712193045297,-2000.00361708,0.00049,2]
[321443460,1712193045306,-1211.0,0.00049,4]
[321443461,1712193045316,-1029.4124782,0.00049,2]
[321443462,1712193045325,-286.44424997,0.00049,30]
[321443463,1712193045339,-300.0,0.00049,2]
[321443464,1712193045348,-303958.67545449,0.00049,30]
[321443465,1712193045358,-1106.46,0.00049,5]
[321443466,1712193045367,-1005.96,0.00049,2]
[321443467,1712193045377,-500.0,0.00049002,30]
[321443468,1712193045386,-1300.0,0.00049002,30]
[321443469,1712193045396,-500.0,0.00049002,30]
[321443470,1712193045406,-1100.0,0.00049002,30]
[321443471,1712193045415,-159.95030803,0.00049015,30]
[321443472,1712193045425,-176.26740746,0.00049044,30]
[321443473,1712193045434,-388.42808272,0.00049079,30]
[321443474,1712193045444,-509.54232732,0.00049082,30]
[321443475,1712193045453,-161.040409,0.00049104,90]
[321443476,1712193045463,-509.54232732,0.00049107,30]
[321443477,1712193045473,-153.63115965,0.00049122,30]
[321443478,1712193045482,-157.33985921,0.00049127,30]
[321443479,1712193045492,-157.33985921,0.00049139,30]
[321443481,1712193045502,-304.08,0.0004918,2]
[321443482,1712193045511,-197.38677701,0.00049211,30]
[321443483,1712193045521,-153.63115965,0.00049217,30]
[321443484,1712193045530,-155.2251499,0.00049231,30]
[321443485,1712193045540,-509.54232732,0.00049239,30]
[321443486,1712193045550,-602.12417404,0.00049241,30]
[321443487,1712193045560,-153.63115965,0.00049253,30]
[321443488,1712193045569,-388.42808272,0.00049257,30]
[321443489,1712193045580,-153.63115965,0.00049258,30]
[321443491,1712193045590,-500.0,0.00049276,30]
[321443492,1712193045599,-1300.0,0.00049276,30]
[321443493,1712193045609,-1100.0,0.00049276,30]
[321443494,1712193045619,-197.38677701,0.00049298,30]
[321443495,1712193045629,-1153.99,0.000493,7]
[321443496,1712193045639,-388.42808272,0.00049313,30]
[321443497,1712193045649,-2123.79,0.00049315,60]
[321443498,1712193045660,-150.0,0.00049315,2]
[321443499,1712193045674,-388.42808272,0.00049328,30]
[321443500,1712193045684,-1000.0,0.00049329,9]
[321443501,1712193045695,-152.0,0.00049332,7]
[321443502,1712193045709,-602.12417404,0.00049356,30]
[321443503,1712193045719,-155.01816655,0.00049368,30]
[321443504,1712193045729,-1102.04,0.000494,7]
[321443505,1712193045738,-211.70038815,0.000494,30]
[321443506,1712193045750,-157.040409,0.00049404,91]
[321443507,1712193045759,-509.54232732,0.00049406,30]
[321443508,1712193045770,-154.04196447,0.00049423,30]
[321443509,1712193045781,-151.0,0.00049425,120]
[321443510,1712193045792,-509.54232732,0.00049433,30]
[321443511,1712193045802,-602.12417404,0.00049441,30]
[321443512,1712193045812,-1005.96,0.0004945,2]
[321443513,1712193045822,-211.70038815,0.00049452,30]
[321443514,1712193045833,-509.54232732,0.00049454,30]
[321443515,1712193045843,-159.96854777,0.0004947,30]
[321443516,1712193045852,-228666.80371101,0.0004949,15]
[321443517,1712193045862,-153.54975412,0.00049492,30]
[321443518,1712193045871,-509.54232732,0.00049494,30]
[321443519,1712193045881,-157.33985921,0.00049494,30]
[321443520,1712193045890,-78656.10212082,0.00049498,2]
[321443521,1712193045901,-154.04196447,0.00049525,30]
[321443522,1712193045910,-203.19613583,0.00049546,30]
[321443523,1712193045920,-500.0,0.0004955,90]
[321443524,1712193045930,-500.0,0.0004955,90]
[321443525,1712193045939,-155.2251499,0.0004956,30]
[321443526,1712193045948,-509.54232732,0.0004956,30]
[321443527,1712193045958,-197.38677701,0.00049588,30]
[321443528,1712193045967,-156.64692395,0.0004959,120]
[321443529,1712193045977,-156.64692395,0.0004959,120]
[321443530,1712193045987,-156.64692395,0.0004959,120]
[321443531,1712193045997,-156.64692395,0.0004959,120]
[321443532,1712193046007,-157.14,0.0004959,120]
[321443533,1712193046017,-158.77279685,0.0004959,120]
[321443534,1712193046026,-158.77279685,0.0004959,120]
[321443535,1712193046037,-158.77279685,0.0004959,120]
[321443536,1712193046047,-158.77279685,0.0004959,120]
[321443537,1712193046057,-158.77279685,0.0004959,120]
[321443538,1712193046067,-158.77279685,0.0004959,120]
[321443539,1712193046078,-158.77279685,0.0004959,120]
[321443540,1712193046087,-158.77279685,0.0004959,120]
[321443541,1712193046098,-158.77279685,0.0004959,120]
[321443542,1712193046108,-158.77279685,0.0004959,120]
[321443543,1712193046118,-158.77279685,0.0004959,120]
[321443544,1712193046128,-158.77279685,0.0004959,120]
[321443545,1712193046138,-158.77279685,0.0004959,120]
[321443546,1712193046148,-158.77279685,0.0004959,120]
[321443547,1712193046158,-158.77279685,0.0004959,120]
[321443548,1712193046168,-159.27,0.0004959,120]
[321443549,1712193046178,-509.54232732,0.00049594,30]
[321443550,1712193046188,-509.54232732,0.00049597,30]
[321443551,1712193046198,-203.19613583,0.00049605,30]
[321443552,1712193046207,-153.63115965,0.00049615,30]
[321443553,1712193046217,-197.38677701,0.00049644,30]
[321443554,1712193046227,-156.72192395,0.00049649,120]
[321443555,1712193046237,-508.14794992,0.00049649,120]
[321443556,1712193046248,-153.63115965,0.00049655,30]
[321443557,1712193046259,-388.42808272,0.00049656,30]
[321443558,1712193046269,-203.19613583,0.00049664,30]
[321443559,1712193046279,-151.0,0.00049687,2]
[321443560,1712193046289,-165.96,0.000497,6]
[321443561,1712193046298,-165.96,0.000497,6]
[321443562,1712193046308,-165.96,0.000497,6]
[321443563,1712193046318,-165.96,0.000497,6]
[321443564,1712193046328,-165.96,0.000497,6]
[321443565,1712193046337,-165.96,0.000497,6]
[321443566,1712193046347,-165.96,0.000497,6]
[321443567,1712193046357,-165.96,0.000497,6]
[321443568,1712193046367,-165.96,0.000497,6]
[321443569,1712193046377,-165.96,0.000497,6]
[321443570,1712193046387,-165.96,0.000497,6]
[321443571,1712193046397,-165.96,0.000497,6]
[321443572,1712193046408,-8088.94,0.000497,6]
[321443573,1712193046418,-8088.94,0.000497,6]
[321443574,1712193046429,-8088.94,0.000497,6]
[321443575,1712193046439,-8088.94,0.000497,6]
[321443576,1712193046450,-8088.94,0.000497,6]
[321443577,1712193046461,-8088.94,0.000497,6]
[321443578,1712193046470,-8088.94,0.000497,6]
[321443579,1712193046480,-8088.94,0.000497,6]
[321443580,1712193046490,-8088.94,0.000497,6]
[321443581,1712193046500,-8088.94,0.000497,6]
[321443582,1712193046510,-8088.94,0.000497,6]
[321443583,1712193046519,-8088.94,0.000497,6]
[321443584,1712193046530,-8088.94,0.000497,6]
[321443585,1712193046541,-8088.94,0.000497,6]
[321443586,1712193046554,-8088.94,0.000497,6]
[321443587,1712193046564,-8088.94,0.000497,6]
[321443588,1712193046573,-8088.94,0.000497,6]
[321443589,1712193046584,-8088.94,0.000497,6]
[321443590,1712193046594,-8088.94,0.000497,6]
[321443591,1712193046604,-8088.94,0.000497,6]
[321443592,1712193046613,-153.54975412,0.00049702,30]
[321443593,1712193046624,-161.040409,0.00049704,92]
[321443594,1712193046633,-211.70038815,0.0004974,30]
[321443595,1712193046644,-203.19613583,0.0004975,30]
[321443596,1712193046654,-291.67523411,0.00049789,30]
[321443597,1712193046663,-6808.10587151,0.000498,60]
[321443598,1712193046673,-197.38677701,0.00049801,30]
[321443599,1712193046683,-500.0,0.00049818,60]
[321443600,1712193046693,-313.0,0.00049818,60]
[321443601,1712193046707,-304.0,0.00049818,60]
[321443602,1712193046717,-301.0,0.00049818,60]
[321443603,1712193046727,-508.0,0.00049818,60]
[321443604,1712193046737,-500.0,0.00049824,90]
[321443605,1712193046751,-1300.0,0.00049824,90]
[321443606,1712193046761,-1100.0,0.00049824,90]
[321443607,1712193046771,-291.67523411,0.00049836,30]
[321443608,1712193046781,-291.67523411,0.00049841,30]
[321443609,1712193046792,-155.78714103,0.00049842,30]
[321443610,1712193046802,-197.38677701,0.00049857,30]
[321443611,1712193046811,-388.42808272,0.00049858,30]
[321443612,1712193046822,-153.63115965,0.00049864,30]
[321443613,1712193046834,-197.38677701,0.00049905,30]
[321443614,1712193046845,-203.19613583,0.00049906,30]
[321443615,1712193046856,-181.71250369,0.00049931,30]
[321443616,1712193046867,-152.0,0.00049941,8]
[321443617,1712193046877,-291.67523411,0.0004997,30]
[321443618,1712193046887,-200.0,0.0004999,90]
[321443619,1712193046897,-200.0,0.0004999,90]
[321443620,1712193046907,-200.0,0.0004999,90]
[321443621,1712193046917,-200.0,0.0004999,90]
[321443622,1712193046927,-200.0,0.0004999,90]
[321443623,1712193046937,-200.0,0.0004999,90]
[321443624,1712193046948,-200.0,0.0004999,90]
[321443625,1712193046958,-200.0,0.0004999,90]
[321443626,1712193046968,-200.0,0.0004999,90]
[321443627,1712193046978,-200.0,0.0004999,90]
[321443628,1712193046987,-200.0,0.0004999,90]
[321443629,1712193046997,-200.0,0.0004999,90]
[321443630,1712193047008,-200.0,0.0004999,90]
[321443631,1712193047018,-200.0,0.0004999,90]
[321443632,1712193047027,-200.0,0.0004999,90]
[321443633,1712193047037,-222.23500266,0.0004999,90]
[321443634,1712193047048,-4384.69704647,0.0005,120]
[321443635,1712193047058,-28637.37560273,0.0005,20]
[321443636,1712193047068,-27093.29378832,0.0005,4]
[321443637,1712193047077,-1121888.75276611,0.0005,20]
[321443638,1712193047090,-573.58258175,0.0005,15]
[321443639,1712193047100,-1506.35434466,0.0005,2]
[321443640,1712193047110,-2230.60955782,0.0005,5]
[321443641,1712193047120,-1120.95388549,0.0005,2]
[321443642,1712193047129,-200.0,0.0005,2]
[321443643,1712193047139,-156.10785485,0.0005,120]
[321443644,1712193047149,-4102.32389012,0.0005,30]
[321443645,1712193047158,-151.0,0.0005,120]
[321443646,1712193047168,-153.28,0.0005,30]
[321443647,1712193047177,-2606.32,0.0005,30]
[321443648,1712193047187,-1600.0,0.0005,21]
[321443649,1712193047197,-232.27042375,0.0005,30]
[321443650,1712193047206,-155.0,0.0005,2]
[321443651,1712193047216,-429.61932964,0.0005,28]
[321443652,1712193047226,-32017.84532244,0.0005,30]
[321443653,1712193047236,-511.7250841,0.0005,90]
[321443654,1712193047245,-2500.0,0.0005,90]
[321443655,1712193047255,-500.0,0.0005,45]
[321443656,1712193047265,-200.0,0.0005,120]
[321443657,1712193047275,-2500.0,0.0005,90]
[321443658,1712193047285,-4423.0,0.0005,12]
[321443659,1712193047295,-509.54232732,0.00050003,60]
[321443660,1712193047305,-291.67523411,0.00050006,60]
[321443661,1712193047315,-304.08,0.0005001,2]
[321443662,1712193047324,-388.42808272,0.00050016,60]
[321443663,1712193047335,-154.04196447,0.00050025,60]
[321443664,1712193047345,-163.09123868,0.00050038,60]
[321443665,1712193047354,-197.38677701,0.00050044,60]
[321443666,1712193047363,-1005.96,0.0005005,2]
[321443667,1712193047372,-937.78,0.00050069,2]
[321443668,1712193047382,-156.72192395,0.00050083,120]
[321443669,1712193047391,-508.14794992,0.00050083,120]
[321443670,1712193047400,-500.0,0.00050098,90]
[321443671,1712193047410,-500.0,0.00050098,90]
[321443672,1712193047419,-1177.0,0.000501,7]
[321443673,1712193047429,-157.040409,0.00050104,110]
[321443674,1712193047440,-155.78714103,0.00050121,60]
[321443675,1712193047450,-2123.79,0.00050136,64]
[321443676,1712193047459,-151.0,0.00050137,120]
[321443677,1712193047468,-197.38677701,0.00050161,60]
[321443678,1712193047478,-509.54232732,0.00050169,60]
[321443679,1712193047487,-211.70038815,0.00050188,60]
[321443680,1712193047497,-153.63115965,0.00050203,60]
[321443681,1712193047506,-203.19613583,0.00050213,60]
[321443682,1712193047516,-211.70038815,0.00050215,60]
[321443683,1712193047526,-159.96854777,0.00050225,60]
[321443684,1712193047535,-166.76874565,0.00050233,60]
[321443685,1712193047545,-230.3301978,0.00050264,14]
[321443686,1712193047557,-230.3301978,0.00050264,14]
[321443687,1712193047566,-230.3301978,0.00050264,14]
[321443688,1712193047576,-230.3301978,0.00050264,14]
[321443689,1712193047587,-230.3301978,0.00050264,14]
[321443690,1712193047597,-230.3301978,0.00050264,14]
[321443691,1712193047606,-230.3301978,0.00050264,14]
[321443692,1712193047616,-230.3301978,0.00050264,14]
[321443693,1712193047626,-230.3301978,0.00050264,14]
[321443694,1712193047636,-230.3301978,0.00050264,14]
[321443695,1712193047646,-230.3301978,0.00050264,14]
[321443696,1712193047657,-230.3301978,0.00050264,14]
[321443697,1712193047668,-230.3301978,0.00050264,14]
[321443698,1712193047677,-230.3301978,0.00050264,14]
[321443699,1712193047992,-230.3301978,0.00050264,14]
[321443700,1712193048001,-230.3301978,0.00050264,14]
[321443701,1712193048011,-230.3301978,0.00050264,14]
[321443702,1712193048020,-230.3301978,0.00050264,14]
[321443703,1712193048029,-230.3301978,0.00050264,14]
[321443704,1712193048038,-230.3301978,0.00050264,14]
[321443705,1712193048048,-230.3301978,0.00050264,14]
[321443706,1712193048058,-159.96854777,0.00050292,60]
[321443707,1712193048067,-153.54975412,0.00050317,60]
[321443708,1712193048076,-388.42808272,0.00050342,60]
[321443709,1712193048087,-291.67523411,0.00050343,60]
[321443710,1712193048096,-154.04196447,0.00050366,60]
[321443711,1712193048105,-1300.0,0.00050372,90]
[321443712,1712193048114,-1100.0,0.00050372,90]
[321443713,1712193048124,-211.70038815,0.00050379,60]
[321443714,1712193048134,-161.040409,0.00050404,111]
[321443715,1712193048143,-150.0,0.0005043,66]
[321443716,1712193048154,-154.04196447,0.00050456,60]
[321443717,1712193048164,-203.19613583,0.00050473,60]
[321443718,1712193048174,-176.5801345,0.00050477,60]
[321443719,1712193048183,-211.70038815,0.00050486,60]
[321443720,1712193048192,-894.0,0.000505,30]
[321443721,1712193048201,-1005.96,0.000505,2]
[321443722,1712193048211,-159.96854777,0.00050501,60]
[321443723,1712193048220,-602.12417404,0.00050504,60]
[321443724,1712193048229,-156.72192395,0.00050518,120]
[321443725,1712193048239,-508.14794992,0.00050518,120]
[321443726,1712193048248,-302.0,0.00050522,4]
[321443727,1712193048257,-153.63115965,0.00050531,60]
[321443728,1712193048267,-152.0,0.0005055,9]
[321443729,1712193048277,-155.2251499,0.00050557,60]
[321443730,1712193048286,-203.19613583,0.0005056,60]
[321443731,1712193048296,-153.63115965,0.00050575,60]
[321443732,1712193048305,-602.12417404,0.00050595,60]
[321443733,1712193048314,-291.67523411,0.00050597,60]
[321443734,1712193048324,-1153.99,0.000506,7]
[321443735,1712193048334,-157.33985921,0.00050601,60]
[321443736,1712193048345,-304.08,0.0005061,2]
[321443737,1712193048354,-197.38677701,0.00050634,60]
[321443738,1712193048364,-500.0,0.00050646,90]
[321443739,1712193048373,-500.0,0.00050646,90]
[321443740,1712193048382,-155.2251499,0.0005066,60]
[321443741,1712193048391,-155.78714103,0.00050666,60]
[321443742,1712193048401,-509.54232732,0.0005069,60]
[321443743,1712193048412,-167.52558323,0.00050691,60]
[321443744,1712193048422,-157.040409,0.00050704,112]